bitfinex/quotes_ETHUSD_20251217
["timestamp","ask_amount","ask_price","bid_price","bid_amount"]
[1765988774831,1.7386,2857.4,2855.7,2.3221]
[1765988775132,1.7386,2857.4,2855.2,7.23685139]
[1765988775133,0.625,2857.3,2855.9,2.3221]
[1765988775331,1.7386,2857.4,2855.9,2.3221]
[1765988775332,0.625,2857.2,2855.9,2.3221]
[1765988775533,0.625,2857.2,2855.9,3.20713538]
[1765988775755,5.9022,2857.6,2856.1,2.3221]
[1765988775922,5.9022,2857.6,2856.5,2.3221]
[1765988775923,0.001,2857.6,2856.5,2.3221]
[1765988776123,0.001,2857.6,2856.6,0.625]
[1765988776360,0.001,2857.6,2856.7,2.3396959]
[1765988776556,0.001,2857.6,2856.4,0.625]
[1765988776557,0.001,2857.6,2856.8,0.23396959]
[1765988776759,0.001,2857.6,2856.2,0.405504]
[1765988776760,0.001,2857.6,2856.6,0.625]
[1765988776925,0.044743,2857.6,2856.4,0.625]
[1765988777129,0.044743,2857.6,2855.8,0.625]
[1765988777130,5.9012,2857.4,2855.8,0.625]
[1765988777362,0.001,2857.6,2856.3,2.3221]
[1765988777530,0.001,2857.6,2856.5,2.3221]
[1765988777730,0.001,2857.6,2856.2,3.50114243]
[1765988777934,0.001,2857.6,2856.6,3.50062484]
[1765988778133,0.001,2857.8,2857.0,5.9734]
[1765988778355,0.625,2858.6,2857.2,5.9734]
[1765988778536,0.625,2858.6,2857.5,2.3221]
[1765988778757,0.625,2858.6,2857.4,0.03139006]
[1765988778758,0.001,2858.9,2857.7,5.9734]
[1765988778959,0.001,2858.9,2857.9,8.2955]
[1765988779146,0.001,2858.9,2858.2,2.3221]
[1765988779345,0.001,2858.7,2858.2,8.9205]
[1765988779583,0.001,2859.1,2858.6,2.35349006]
[1765988779742,9.14735234,2860.4,2858.6,2.35349006]
[1765988779743,1.7396,2860.6,2858.8,2.3221]
[1765988780082,1.7396,2860.6,2859.3,2.3221]
[1765988780083,0.625,2860.6,2859.3,2.3221]
[1765988780291,0.001,2861.0,2859.5,5.9734]
[1765988780595,0.001,2861.0,2859.8,2.3221]
[1765988780742,0.001,2861.0,2859.8,8.2955]
[1765988780944,5.9012,2860.9,2858.9,5.9734]
[1765988781168,0.59022,2860.8,2859.6,8.2955]
[1765988781367,0.001,2861.0,2859.7,8.9205]
[1765988781577,0.001,2861.0,2859.8,2.3221]
[1765988781879,0.001,2861.0,2860.1,2.3221]
[1765988782072,0.001,2861.0,2859.3,2.3221]
[1765988782073,5.9012,2860.8,2859.3,2.3221]
[1765988782274,5.01629559,2860.7,2859.2,0.624]
[1765988782447,1.76396979,2860.6,2859.1,7.7187]
[1765988782772,1.76396979,2860.6,2858.6,7.7187]
[1765988782773,0.46438023,2860.4,2858.6,7.7187]
[1765988783073,2.20398023,2860.7,2858.8,2.2711]
[1765988783273,0.624,2860.3,2858.8,7.7187]
[1765988783576,1.7396,2860.1,2858.5,3.49830713]
[1765988783749,0.624,2860.0,2858.6,2.2711]
[1765988783947,0.23636,2859.9,2858.8,7.7187]
[1765988784274,0.624,2860.9,2859.0,0.405504]
[1765988784440,0.624,2860.9,2859.5,5.4476]
[1765988784644,0.0002,2861.0,2859.9,5.4476]
[1765988784841,0.0002,2861.0,2859.5,0.624]
[1765988784842,0.0002,2861.0,2860.2,2.2711]
[1765988785072,0.0002,2861.0,2858.8,5.4476]
[1765988785272,0.0002,2861.0,2859.8,2.2711]
[1765988785460,0.624,2861.4,2859.9,3.49653118]
[1765988785661,0.02621228,2861.3,2860.0,0.624]
[1765988785875,0.001,2860.8,2860.0,0.624]
[1765988786081,0.001,2860.8,2859.8,5.4476]
[1765988786282,0.001,2860.8,2859.9,0.624]
[1765988786465,0.001,2860.8,2860.0,0.624]
[1765988786668,5.9726,2861.6,2860.2,2.2711]
[1765988786987,0.02621228,2861.6,2860.4,2.2711]
[1765988787155,0.02621228,2861.6,2860.0,2.2711]
[1765988787356,0.02621228,2861.6,2859.8,5.4476]
[1765988787357,5.9726,2861.4,2859.8,5.4476]
[1765988787558,5.9726,2861.4,2859.9,0.624]
[1765988787796,6.5966,2861.4,2859.8,5.4476]
[1765988788098,6.5966,2861.4,2858.8,2.2711]
[1765988788099,1.3648,2861.0,2858.8,2.2711]
[1765988788303,1.3648,2860.8,2859.0,2.2711]
[1765988788521,1.3648,2860.4,2857.9,7.7187]
[1765988788663,7.3374,2859.7,2858.0,2.2711]
[1765988788860,7.3374,2859.7,2858.1,7.7187]
[1765988788861,0.623,2859.6,2858.1,7.7187]
[1765988789089,5.9726,2859.3,2857.6,8.94703636]
[1765988789288,5.9726,2859.1,2857.7,0.623]
[1765988789498,5.9726,2858.9,2856.8,5.4476]
[1765988789691,5.9726,2858.9,2857.0,7.7187]
[1765988789692,7.3374,2858.9,2857.0,7.7187]
[1765988790111,0.623,2859.0,2856.5,5.4476]
[1765988790112,5.9726,2858.2,2856.5,5.4476]
[1765988790418,0.623,2858.1,2856.9,7.7187]
[1765988790608,0.02621228,2858.0,2856.5,0.623]
[1765988790889,0.46438023,2858.6,2857.1,7.7187]
[1765988791091,0.02621228,2858.6,2857.2,0.623]
[1765988791281,0.623,2858.5,2856.2,0.03139006]
[1765988791481,0.623,2858.5,2856.0,0.035014]
[1765988791482,5.9726,2858.4,2856.0,0.035014]
[1765988791679,7.3374,2858.0,2856.1,11.84294681]
[1765988791880,6.61515228,2857.9,2856.2,3.45539468]
[1765988792093,0.64921228,2857.8,2856.2,6.95652642]
[1765988792398,6.58894,2857.9,2856.2,6.95652642]
[1765988792399,6.4782,2857.9,2856.5,8.2188]
[1765988792581,0.02621228,2857.8,2856.6,0.623]
[1765988792784,1.3648,2858.5,2856.6,0.623]
[1765988792785,5.8552,2858.5,2856.7,2.3017]
[1765988792976,0.623,2858.5,2857.0,5.9171]
[1765988793179,0.46438023,2858.8,2857.2,5.9171]
[1765988793374,1.08738023,2858.7,2857.3,0.623]
[1765988793574,7.22,2858.6,2857.1,0.623]
[1765988793785,7.22,2858.6,2857.1,6.5401]
[1765988793991,0.81051228,2858.5,2857.1,6.5401]
[1765988794188,1.3648,2858.4,2857.0,0.002]
[1765988794392,7.843,2858.3,2857.0,0.002]
[1765988794588,7.22,2858.3,2857.0,0.002]
[1765988794788,1.78586992,2859.1,2857.0,0.002]
[1765988794789,5.8552,2859.9,2857.3,5.9171]
[1765988794993,1.3648,2860.5,2857.9,1.74914144]
[1765988795193,1.3648,2860.5,2857.8,0.405504]
[1765988795194,7.22,2860.2,2858.3,5.9171]
[1765988795373,5.8552,2860.0,2858.4,0.623]
[1765988795574,4.8552,2860.0,2858.4,0.623]
[1765988795912,0.622,2859.9,2858.6,0.03139006]
[1765988796095,0.46438023,2860.5,2858.4,1.53857006]
[1765988796096,1.3648,2860.6,2858.7,8.2188]
[1765988796271,1.3648,2860.4,2858.7,8.2188]
[1765988796608,1.3648,2860.4,2858.8,2.2086]
[1765988796768,1.3648,2860.4,2859.0,3.49772647]
[1765988796769,0.20140123,2860.3,2859.0,3.49772647]
[1765988796966,1.3648,2861.0,2859.2,5.4353]
[1765988797193,1.3648,2861.0,2859.3,6.0583]
[1765988797397,1.3648,2861.0,2859.4,2.8615]
[1765988797398,0.623,2860.7,2859.4,2.8615]
[1765988797597,6.2999,2860.7,2859.2,5.4353]
[1765988797798,6.2999,2860.7,2859.3,2.2385]
[1765988797989,0.63009,2860.6,2859.3,2.2385]
[1765988798600,5.6769,2860.7,2859.4,2.2385]
[1765988798778,1.3648,2860.6,2857.8,3.49908952]
[1765988799106,6.2999,2860.5,2858.7,7.6738]
[1765988799404,6.2999,2860.5,2858.8,0.623]
[1765988799405,6.44337,2860.4,2858.8,0.623]
[1765988799610,5.6769,2860.4,2858.9,2.2385]
[1765988799810,5.70311228,2860.4,2859.0,7.6738]
[1765988799994,5.70311228,2860.4,2859.0,8.2968]
[1765988799995,5.6769,2860.4,2859.0,8.2968]
[1765988800170,0.623,2860.3,2859.0,8.2968]
[1765988800367,0.623,2860.3,2859.3,0.002]
[1765988800572,5.89721228,2860.2,2859.3,0.002]
[1765988800773,1.3648,2860.4,2859.3,0.002]
[1765988801007,0.64821228,2860.3,2859.3,0.002]
[1765988801189,0.02621228,2860.3,2859.3,0.002]
[1765988801400,6.5311,2860.2,2858.9,2.3097]
[1765988801705,6.56483123,2860.1,2858.6,0.622]
[1765988801910,6.56483123,2860.1,2858.6,4.12013192]
[1765988802314,6.56483123,2860.1,2858.7,0.622]
[1765988802606,5.9091,2859.7,2858.3,2.2266]
[1765988802804,0.49059251,2860.0,2858.6,7.7021]
[1765988803011,0.622,2859.7,2858.6,7.7021]
[1765988803373,5.7091,2859.6,2858.3,2.2266]
[1765988803573,4.34973123,2860.1,2858.5,7.7021]
[1765988803574,0.65573123,2860.1,2858.5,7.7021]
[1765988803802,0.622,2860.0,2858.5,7.7021]
[1765988804108,1.3628,2860.3,2858.5,7.7021]
[1765988804109,0.64821228,2859.9,2858.5,7.7021]
[1765988804306,2.01101228,2859.9,2858.5,8.3241]
[1765988805013,0.02621228,2859.8,2858.5,8.3241]
[1765988805610,0.02621228,2859.8,2858.1,0.002]
[1765988805611,5.9091,2859.7,2858.1,0.002]
[1765988805808,4.316,2859.9,2857.4,7.7021]
[1765988805809,5.9091,2859.1,2857.4,7.7021]
[1765988806021,6.5311,2859.1,2857.8,2.2266]
[1765988806188,0.622,2859.1,2857.9,7.7021]
[1765988806392,0.02621228,2859.0,2857.9,7.7021]
[1765988806611,0.622,2859.1,2857.9,2.8486]
[1765988806781,0.02621228,2859.0,2857.9,2.2266]
[1765988806981,7.2699,2858.9,2857.4,8.3241]
[1765988807195,7.28692351,2858.8,2857.4,7.7021]
[1765988807422,5.9091,2858.5,2857.0,0.002]
[1765988807742,0.72961123,2858.8,2857.5,7.7021]
[1765988807886,0.622,2858.7,2857.6,2.2266]
[1765988808189,7.29411228,2858.6,2857.3,0.002]
[1765988808380,0.46438023,2859.1,2857.4,5.4755]
[1765988808582,0.46438023,2859.1,2857.3,0.002]
[1765988808583,5.9091,2858.7,2857.3,0.002]
[1765988808781,5.9091,2858.3,2857.3,0.002]
[1765988808980,0.72679,2858.2,2857.3,0.002]
[1765988809911,7.2659,2858.0,2857.0,0.002]
[1765988810108,5.9091,2858.0,2857.0,0.002]
[1765988810310,5.9091,2857.6,2855.9,7.7021]
[1765988810481,5.9091,2857.6,2856.0,0.622]
[1765988810687,1.3548,2857.5,2855.9,5.4755]
[1765988810993,1.3548,2857.5,2855.8,2.2286]
[1765988810994,5.9091,2857.0,2855.8,0.002]
[1765988811413,9.53859761,2858.0,2855.8,0.002]
[1765988811586,1.3528,2857.6,2856.1,2.2266]
[1765988811788,5.9091,2857.5,2856.1,2.8486]
[1765988812218,1.9748,2857.4,2856.2,0.46438023]
[1765988812395,7.2619,2857.3,2855.8,7.7041]
[1765988812599,7.2619,2857.3,2855.9,0.622]
[1765988812798,5.93531228,2857.2,2855.8,7.7041]
[1765988812997,5.9091,2857.2,2855.9,0.622]
[1765988813198,7.2619,2857.0,2855.8,0.002]
[1765988813426,1.34819,2857.1,2855.0,3.50262083]
[1765988813427,1.3528,2856.5,2855.0,3.50262083]
[1765988813612,1.3528,2856.5,2855.4,0.622]
[1765988813613,5.9091,2856.4,2855.4,0.622]
[1765988813791,5.9091,2856.4,2855.0,0.46438023]
[1765988814119,5.9091,2856.5,2855.1,4.12444366]
[1765988814321,5.9091,2856.5,2854.9,0.46438023]
[1765988814625,5.9091,2856.3,2855.0,9.60010841]
[1765988814824,5.9091,2855.9,2854.7,0.002]
[1765988815138,6.5311,2856.0,2854.7,0.002]
[1765988815424,6.5311,2856.0,2854.4,0.002]
[1765988815425,5.9091,2855.6,2854.4,0.002]
[1765988815630,7.2599,2855.1,2854.0,0.621]
[1765988815791,0.621,2855.4,2854.0,2.2266]
[1765988816006,5.9091,2855.0,2853.5,2.2266]
[1765988816243,5.9091,2854.6,2853.6,1.19411843]
[1765988816449,0.621,2854.9,2852.6,5.4755]
[1765988816450,5.9091,2854.2,2852.6,5.4755]
[1765988816741,5.9091,2853.6,2852.6,0.621]
[1765988816944,5.9091,2853.6,2852.1,0.002]
[1765988816945,1.3488,2853.4,2852.1,0.002]
[1765988817252,1.99601228,2853.4,2852.1,0.002]
[1765988817413,1.9698,2853.4,2852.1,0.002]
[1765988817608,1.3488,2853.2,2850.7,10.52373099]
[1765988817849,1.3488,2853.2,2851.7,5.4755]
[1765988818145,0.05,2856.0,2851.5,0.03139006]
[1765988818146,1.37501228,2854.6,2852.3,2.2266]
[1765988818308,1.37501228,2854.6,2852.7,2.2266]
[1765988818515,1.37501228,2854.6,2852.8,5.4755]
[1765988818709,1.37501228,2854.6,2852.1,7.7021]
[1765988818710,1.3488,2854.5,2852.1,7.7021]
[1765988818921,1.3488,2854.5,2852.2,0.621]
[1765988818922,5.4965,2853.9,2852.2,0.621]
[1765988819218,1.3488,2853.2,2851.8,3.5064776]
[1765988819433,1.3488,2853.2,2851.6,5.73337442]
[1765988819434,0.02621228,2853.1,2851.6,2.2266]
[1765988819608,5.4965,2853.1,2851.7,0.57648768]
[1765988819813,5.4965,2853.1,2851.8,0.621]
[1765988820341,0.02621228,2853.5,2851.7,2.25799006]
[1765988820342,0.02621228,2853.5,2852.5,2.2266]
[1765988820543,1.9698,2853.7,2852.2,5.4755]
[1765988820744,1.9698,2853.7,2852.0,2.2266]
[1765988820745,1.3488,2853.5,2852.0,2.2266]
[1765988820929,6.8453,2853.4,2852.3,0.621]
[1765988821107,0.46438023,2853.3,2850.8,1.08376316]
[1765988821312,0.621,2853.7,2850.8,1.08376316]
[1765988821313,5.4965,2852.8,2851.5,3.5069108]
[1765988821551,1.3488,2852.5,2850.7,3.50789234]
[1765988821734,1.3488,2852.5,2850.5,0.002]
[1765988821735,1.3488,2852.0,2850.5,0.002]
[1765988821911,0.02621228,2852.4,2850.5,0.002]
[1765988821912,5.4965,2851.5,2850.5,0.002]
[1765988822112,0.02621228,2851.4,2850.5,0.002]
[1765988822422,3.50409589,2853.9,2850.5,0.002]
[1765988822423,0.621,2851.7,2850.5,0.002]
[1765988822619,0.68980898,2853.5,2850.8,5.4755]
[1765988822620,0.621,2852.3,2850.8,5.4755]
[1765988822844,6.8453,2852.6,2851.1,5.4755]
[1765988823055,0.02621228,2852.5,2851.2,0.621]
[1765988823261,1.3488,2853.5,2851.3,7.7021]
[1765988823544,6.8453,2852.5,2851.5,0.002]
[1765988824110,6.8453,2853.4,2851.5,0.002]
[1765988824309,1.3488,2853.1,2851.5,2.2286]
[1765988824543,6.8453,2853.0,2851.6,1.39141]
[1765988824747,0.621,2853.3,2851.7,5.881004]
[1765988824948,5.4965,2853.8,2852.5,2.2266]
[1765988825107,1.3488,2854.3,2851.9,7.7021]
[1765988825108,0.02621228,2853.7,2851.9,7.7021]
[1765988825309,5.4965,2853.2,2852.0,0.621]
[1765988825624,5.4965,2853.0,2852.0,0.621]
[1765988825825,0.68453,2853.2,2852.0,3.50631008]
[1765988826029,0.03139006,2854.2,2852.1,0.621]
[1765988826030,5.4965,2853.5,2852.1,0.621]
[1765988826243,5.4965,2853.3,2851.9,3.50641094]
[1765988826409,0.02621228,2853.4,2850.6,2.2266]
[1765988826410,5.4945,2852.6,2850.6,2.2266]
[1765988826609,6.8433,2852.1,2850.7,1.19466609]
[1765988826808,5.4945,2852.0,2850.7,1.19466609]
[1765988827052,5.4945,2852.0,2850.7,4.70256457]
[1765988827261,5.4945,2852.3,2850.8,7.7021]
[1765988827476,6.8433,2852.3,2850.8,7.7021]
[1765988827762,5.4945,2852.3,2851.0,7.7021]
[1765988828057,5.4945,2852.3,2851.1,0.03507418]
[1765988828235,5.4945,2852.3,2851.0,2.2266]
[1765988828568,6.8433,2852.3,2850.9,1.24046646]
[1765988828709,0.54945,2852.5,2850.5,0.002]
[1765988828710,5.4945,2852.0,2850.5,0.002]
[1765988828915,6.8433,2851.8,2850.5,0.002]
[1765988829233,6.8433,2851.6,2850.5,0.002]
[1765988829413,5.4945,2851.4,2850.4,0.002]
[1765988829614,5.4945,2851.2,2850.0,0.621]
[1765988829847,5.4945,2851.2,2850.1,3.50863763]
[1765988830059,11.32926292,2852.4,2850.0,2.8875]
[1765988830060,0.49577029,2852.3,2850.0,2.8875]
[1765988830357,5.4945,2851.9,2850.8,0.002]
[1765988830527,6.04395,2851.9,2850.8,0.623]
[1765988830711,5.4945,2851.9,2850.8,0.623]
[1765988830907,1.3448,2852.2,2850.8,0.002]
[1765988830908,2.43018023,2852.2,2850.8,0.002]
[1765988831113,2.43018023,2852.2,2850.9,0.621]
[1765988831114,5.4945,2852.1,2850.9,0.621]
[1765988831410,5.4945,2852.1,2850.8,3.50978728]
[1765988831648,6.8393,2853.4,2851.2,0.405504]
[1765988831965,6.8393,2853.9,2851.6,0.405504]
[1765988832248,1.3448,2853.7,2851.4,5.8944]
[1765988832411,1.37619006,2853.4,2850.9,8.1717]
[1765988832612,1.3448,2853.2,2851.1,8.1717]
[1765988832812,1.3448,2853.0,2851.2,9.05447754]
[1765988833114,1.3448,2853.0,2851.6,2.2773]
[1765988833315,1.9658,2853.5,2851.9,8.1717]
[1765988833536,1.3448,2853.5,2852.1,5.8944]
[1765988833815,1.3448,2853.5,2851.5,0.405504]
[1765988833816,1.9658,2853.9,2852.2,8.7927]
[1765988834016,0.19658,2853.8,2852.3,0.87927]
[1765988834217,5.69028,2853.8,2852.3,0.87927]
[1765988834521,5.69028,2853.8,2851.6,0.49577029]
[1765988834522,1.3448,2853.6,2851.6,0.03139006]
[1765988834734,6.86471228,2853.5,2851.8,8.1717]
[1765988835047,0.02621228,2853.4,2852.1,5.8944]
[1765988835232,0.02621228,2853.4,2851.8,7.01311452]
[1765988835233,0.621,2853.8,2852.6,5.8944]
[1765988835419,0.621,2853.8,2852.6,7.33257]
[1765988835613,1.08538023,2853.8,2852.6,6.5154]
[1765988835812,1.08538023,2853.8,2852.6,5.8944]
[1765988836061,1.08538023,2853.8,2851.2,0.88277754]
[1765988836062,2.2177911,2853.4,2851.2,0.88277754]
[1765988836216,1.3448,2852.8,2851.2,4.12822232]
[1765988836418,5.4937,2852.3,2851.2,0.621]
[1765988836634,1.3448,2852.4,2851.2,0.621]
[1765988836947,0.621,2852.8,2851.4,2.2773]
[1765988837149,0.621,2852.8,2851.2,0.91083]
[1765988837150,0.621,2852.9,2851.6,8.1717]
[1765988837446,0.621,2852.9,2851.2,0.91083]
[1765988837447,0.02621228,2852.8,2851.5,5.8944]
[1765988837648,0.001,2853.5,2851.4,6.299904]
[1765988837821,0.001,2854.7,2853.1,0.86988423]
[1765988838026,0.001,2854.7,2853.6,2.2773]
[1765988838221,0.001,2854.7,2853.7,8.7927]
[1765988838431,0.001,2854.7,2853.7,0.621]
[1765988838633,0.001,2854.7,2853.4,2.2773]
[1765988838855,0.001,2854.7,2853.8,2.2773]
[1765988839046,0.001,2854.7,2853.7,5.8944]
[1765988839047,0.001,2854.7,2853.9,0.621]
[1765988839455,0.001,2855.8,2854.6,0.03139006]
[1765988839641,9.16741433,2858.3,2854.6,0.03139006]
[1765988839642,1.3458,2859.7,2856.5,6.35878023]
[1765988839826,1.3458,2859.7,2857.5,7.63526292]
[1765988839827,1.3448,2859.6,2857.5,7.63526292]
[1765988840030,1.3448,2859.6,2857.6,1.08438023]
[1765988840229,1.3448,2859.6,2857.6,6.97878023]
[1765988840454,3.694,2859.3,2857.7,0.62]
[1765988840638,1.3448,2859.0,2857.7,0.62]
[1765988840840,3.694,2858.9,2857.7,0.62]
[1765988841053,3.694,2858.9,2857.0,0.46438023]
[1765988841054,1.3448,2858.8,2857.0,0.46438023]
[1765988841366,1.3448,2858.8,2856.6,0.62]
[1765988841367,1.8729,2858.1,2856.6,0.62]
[1765988841526,1.2248,2858.0,2856.6,0.62]
[1765988841729,1.2248,2857.8,2855.9,11.13678097]
[1765988841923,0.6481,2857.6,2856.0,0.62]
[1765988842128,1.65901,2857.5,2855.7,0.46438023]
[1765988842359,1.65901,2857.5,2855.0,0.405504]
[1765988842360,1.2248,2857.0,2855.0,5.8944]
[1765988842527,1.8448,2856.9,2855.1,0.62]
[1765988842732,1.8448,2856.9,2855.2,0.62]
[1765988842934,0.62,2856.8,2855.3,0.46438023]
[1765988843142,0.62,2856.8,2854.8,3.50286348]
[1765988843342,0.62,2856.8,2854.6,8.1717]
[1765988843343,0.405504,2856.4,2854.6,8.1717]
[1765988843543,0.6481,2856.3,2854.6,8.1717]
[1765988843874,0.6481,2856.3,2853.5,13.52966292]
[1765988843875,0.6481,2856.0,2853.5,13.52966292]
[1765988844030,0.6481,2855.8,2853.8,4.1240031]
[1765988844364,0.6481,2855.8,2853.8,4.12399982]
[1765988844570,0.6481,2855.8,2854.3,3.50339519]
[1765988844731,0.6481,2855.8,2854.4,0.62]
[1765988844934,0.6481,2855.8,2854.5,0.62]
[1765988845134,0.8448,2855.7,2854.5,0.62]
[1765988845369,0.8448,2855.7,2854.1,7.00742678]
[1765988845663,1.4929,2855.7,2854.2,0.62]
[1765988845863,1.4929,2855.7,2854.0,5.8944]
[1765988845864,0.6481,2855.7,2854.0,5.8944]
[1765988846065,0.8448,2856.0,2854.2,7.63526292]
[1765988846365,0.8448,2856.0,2854.4,0.46438023]
[1765988846571,0.8448,2856.0,2854.3,0.46438023]
[1765988846745,0.8448,2856.5,2854.7,8.1717]
[1765988846945,0.8448,2856.5,2854.9,7.0054993]
[1765988847172,0.62,2856.6,2855.0,0.62]
[1765988847173,0.8448,2856.3,2855.0,0.62]
[1765988847348,0.62,2856.6,2854.4,0.986043]
[1765988847349,0.6481,2856.0,2854.4,0.986043]
[1765988847548,0.62,2856.6,2854.1,0.62]
[1765988847549,1.4929,2855.5,2854.1,0.62]
[1765988847763,1.4929,2855.5,2854.1,4.53610067]
[1765988847764,0.8448,2855.4,2854.1,4.53610067]
[1765988848067,0.8729,2855.6,2854.1,1.03238526]
[1765988848232,0.8448,2855.4,2853.5,7.63526292]
[1765988848439,0.8729,2855.2,2853.6,0.62]
[1765988848633,0.8729,2855.2,2853.8,3.50408662]
[1765988848869,0.8729,2855.2,2853.9,3.50386202]
[1765988849165,0.8729,2855.2,2853.6,0.62]
[1765988849166,0.8729,2855.1,2853.6,3.50434198]
[1765988849365,0.03139006,2855.4,2853.7,1.46440561]
[1765988849835,0.8448,2855.6,2854.1,5.8944]
[1765988850035,0.0281,2855.3,2853.7,1.46440561]
[1765988850235,0.0281,2855.3,2853.8,0.8473093]
[1765988850652,0.619,2855.7,2853.8,10.19684017]
[1765988850869,0.619,2855.7,2854.1,5.8944]
[1765988851075,0.8729,2855.6,2854.1,3.50373147]
[1765988851286,0.8448,2855.4,2853.8,0.8473093]
[1765988851577,0.8448,2855.4,2854.0,3.50581898]
[1765988851784,0.8448,2855.4,2854.0,7.00967321]
[1765988852089,0.619,2855.7,2854.0,15.18137321]
[1765988852443,1.4638,2855.7,2854.1,0.619]
[1765988852640,1.4638,2855.7,2854.1,8.7907]
[1765988852860,1.4638,2855.7,2854.2,7.47443732]
[1765988853166,1.4638,2855.7,2854.3,7.00697192]
[1765988853355,0.619,2855.7,2854.3,9.39788596]
[1765988853577,0.619,2855.7,2854.3,12.90137192]
[1765988853776,0.619,2855.7,2854.5,5.8944]
[1765988853973,0.03139006,2857.2,2855.1,5.8944]
[1765988853974,0.8448,2857.0,2855.1,5.8944]
[1765988854297,0.0281,2856.7,2855.1,6.5134]
[1765988854492,0.8448,2856.6,2855.1,0.619]
[1765988854709,0.8729,2856.6,2854.8,5.8944]
[1765988854914,0.8729,2856.4,2855.0,0.619]
[1765988855067,0.8729,2856.4,2855.0,3.50262697]
[1765988855518,0.8729,2856.4,2854.6,8.15211303]
[1765988855519,0.8448,2856.2,2853.6,5.8944]
[1765988855656,0.8448,2855.5,2853.2,7.63526292]
[1765988855986,0.0261,2854.6,2853.3,0.76352629]
[1765988856301,0.619,2855.4,2851.7,7.63726292]
[1765988856302,0.0241,2854.0,2851.7,7.63726292]
[1765988856466,0.0241,2853.8,2851.9,5.8944]
[1765988856651,0.619,2853.9,2852.0,3.50619063]
[1765988856652,0.0241,2853.7,2852.0,3.50619063]
[1765988856855,0.0241,2853.7,2852.0,0.35061906]
[1765988857167,0.0241,2853.7,2852.1,3.50617406]
[1765988857567,0.619,2853.9,2852.7,7.63526292]
[1765988857778,0.619,2853.9,2852.5,8.1717]
[1765988857961,0.405504,2855.0,2852.4,2.2773]
[1765988857962,0.0241,2855.0,2852.4,2.2773]
[1765988858160,0.0241,2855.0,2852.5,6.12213]
[1765988858161,0.844,2854.6,2852.5,6.12213]
[1765988858374,0.8681,2854.1,2852.5,0.22773]
[1765988858580,0.0241,2853.8,2852.0,6.13619106]
[1765988858891,1.463,2853.7,2852.1,8.1717]
[1765988859201,0.619,2853.7,2852.3,5.8944]
[1765988859511,0.619,2853.7,2852.2,7.63526292]
[1765988859787,0.844,2853.6,2852.0,3.85889476]
[1765988860108,0.844,2853.6,2852.1,3.89205941]
[1765988860253,0.619,2853.7,2852.2,2.2773]
[1765988860455,0.619,2853.7,2852.2,8.1717]
[1765988861185,0.03139006,2854.5,2852.2,8.1717]
[1765988861186,3.96810576,2855.9,2852.8,7.63526292]
[1765988861384,1.77995438,2857.4,2852.6,0.03139006]
[1765988861385,0.001,2857.5,2855.9,5.9248]
[1765988861567,0.001,2857.5,2855.6,7.63526292]
[1765988861568,4.0112,2857.4,2855.6,7.63526292]
[1765988861770,4.0112,2857.4,2855.5,7.63526292]
[1765988861973,4.0112,2857.4,2855.5,8.2545]
[1765988862169,4.0112,2857.4,2854.5,1.79353377]
[1765988862170,4.0112,2857.4,2855.8,5.9248]
[1765988862706,4.0112,2857.4,2855.5,4.05901351]
[1765988863001,4.0112,2857.4,2855.6,1.7214721]
[1765988863201,4.0112,2857.4,2855.7,7.00353678]
[1765988863771,0.001,2857.5,2855.3,3.50223222]
[1765988863772,4.0112,2857.2,2855.3,3.50223222]
[1765988864015,4.0112,2857.2,2855.6,7.00378204]
[1765988864182,4.0112,2857.0,2855.6,3.50189102]
[1765988864589,0.405504,2857.0,2855.0,3.50254723]
[1765988864909,4.0112,2856.7,2854.7,3.50292314]
[1765988865225,4.0112,2856.7,2855.1,5.9248]
[1765988865375,0.619,2857.1,2855.3,8.2545]
[1765988865570,0.619,2857.1,2855.6,5.9248]
[1765988865802,0.619,2857.1,2855.9,8.2545]
[1765988866174,0.001,2857.5,2856.2,2.3297]
[1765988866404,0.001,2857.5,2855.6,5.9248]
[1765988866405,4.0122,2857.5,2855.6,5.9248]
[1765988866704,4.47558023,2857.4,2855.5,2.3297]
[1765988867082,4.47558023,2857.4,2855.3,7.60868939]
[1765988867277,4.47558023,2857.4,2855.2,7.00476322]
[1765988867607,4.47558023,2857.4,2855.3,7.60868939]
[1765988867904,4.0112,2857.2,2855.3,7.60868939]
[1765988868205,4.0112,2857.4,2855.4,2.3297]
[1765988868508,4.0112,2857.4,2855.3,0.405504]
[1765988868712,4.0112,2857.2,2855.1,3.50250429]
[1765988868878,4.04259006,2856.5,2855.1,3.50250429]
[1765988869211,0.618,2856.4,2855.0,3.50261373]
[1765988869515,0.03139006,2856.7,2855.4,8.2545]
[1765988869516,0.618,2856.7,2855.4,8.2545]
[1765988869886,0.618,2856.7,2855.0,24.04135706]
[1765988870288,0.618,2856.7,2855.1,8.2545]
[1765988870595,0.618,2856.7,2855.1,9.97627141]
[1765988870796,4.0112,2856.6,2854.5,0.002]
[1765988871014,0.618,2856.7,2854.9,3.50269203]
[1765988871310,4.0112,2856.6,2854.8,2.3297]
[1765988871513,4.0112,2856.4,2854.8,2.3297]
[1765988871805,4.0112,2856.4,2854.6,7.00621012]
[1765988871806,4.0112,2856.3,2854.6,3.50309235]
[1765988871977,0.03139006,2856.4,2854.6,3.50309235]